fUST/lending_fUST_20240922
["ID","MTS","AMOUNT","RATE_DAILY","PERIOD"]
[338864855,1726954243082,-151.0,0.00016463,2]
[338864856,1726954243092,-169.816527,0.00016463,2]
[338864857,1726954243101,-151.0,0.00016463,2]
[338864858,1726954243111,-1454.083673,0.00016463,2]
[338864859,1726954243120,-151.0,0.00016463,2]
[338864860,1726954243130,-1454.083673,0.00016463,2]
[338864861,1726954243139,-151.0,0.00016463,2]
[338864862,1726954243149,-151.0,0.00016463,2]
[338864863,1726954243158,-151.0,0.00016463,2]
[338864864,1726954243167,-151.0,0.00016463,2]
[338864865,1726954243177,-517.426835,0.00016463,2]
[338864866,1726954243186,-151.0,0.00016463,2]
[338864867,1726954243196,-151.0,0.00016463,2]
[338864868,1726954243205,-517.426835,0.00016463,2]
[338864869,1726954243216,-271.163604,0.00016463,2]
[338864870,1726954243228,-271.163604,0.00016463,2]
[338864871,1726954243238,-239.065775,0.00016463,2]
[338864872,1726954243247,-239.065775,0.00016463,2]
[338864873,1726954243256,-758.112631,0.00016463,2]
[338864874,1726954243267,-199.499447,0.00016463,2]
[338864875,1726954243278,-758.112631,0.00016463,2]
[338864876,1726954243287,-151.0,0.00016463,2]
[338864877,1726954243297,-199.499447,0.00016463,2]
[338864878,1726954243307,-151.0,0.00016463,2]
[338864879,1726954243319,-632.606093,0.00016463,2]
[338864880,1726954243331,-632.606093,0.00016463,2]
[338864881,1726954243341,-5654.261616,0.00016463,2]
[338864882,1726954243350,-5654.261616,0.00016463,2]
[338864883,1726954243360,-1873.720172,0.00016463,2]
[338864884,1726954243369,-151.0,0.00016463,2]
[338864885,1726954243378,-153.278653,0.00016463,2]
[338864886,1726954243388,-1873.720172,0.00016463,2]
[338864887,1726954243397,-1203.833073,0.00016463,2]
[338864888,1726954243407,-1516.180759,0.00016463,2]
[338864889,1726954243416,-153.23125617,0.00016463,2]
[338864894,1726954250815,650.13,0.00010959,2]
[338864917,1726955431847,-300.0,0.000151,2]
[338864919,1726955431857,-300.0,0.000151,2]
[338864921,1726955431868,-500.0,0.00015101,2]
[338864923,1726955431878,-500.0,0.00015101,2]
[338864925,1726955431887,-500.0,0.00015101,2]
[338864927,1726955431897,-500.0,0.00015101,2]
[338864929,1726955431907,-500.0,0.00015101,2]
[338864931,1726955431917,-500.0,0.00015101,2]
[338864932,1726955431927,-500.0,0.00015101,2]
[338864933,1726955431936,-500.0,0.00015101,2]
[338864935,1726955431946,-500.0,0.00015101,2]
[338864937,1726955431956,-500.0,0.00015101,2]
[338864938,1726955431966,-500.0,0.00015101,2]
[338864939,1726955431976,-500.0,0.00015101,2]
[338864940,1726955431987,-500.0,0.00015101,2]
[338864941,1726955431997,-379.57690036,0.00015273,2]
[338864942,1726955432007,-500.0,0.00015371,2]
[338864943,1726955432017,-500.0,0.00015371,2]
[338864944,1726955432027,-500.0,0.00015371,2]
[338864945,1726955432036,-500.0,0.00015371,2]
[338864946,1726955432045,-10026.25,0.00015371,2]
[338864947,1726955432054,-904.37,0.00015371,2]
[338864948,1726955432063,-500.0,0.00015372,2]
[338864949,1726955432072,-500.0,0.00015372,2]
[338864950,1726955432082,-500.0,0.00015372,2]
[338864951,1726955432091,-500.0,0.00015372,2]
[338864952,1726955432100,-500.0,0.00015372,2]
[338864953,1726955432109,-500.0,0.00015372,2]
[338864954,1726955432118,-500.0,0.00015372,2]
[338864955,1726955432127,-500.0,0.00015372,2]
[338864956,1726955432137,-500.0,0.00015372,2]
[338864957,1726955432147,-500.0,0.00015372,2]
[338864958,1726955432156,-570.13,0.00015372,2]
[338864959,1726955432165,-500.0,0.00015372,2]
[338864960,1726955432175,-3570.65,0.00015372,2]
[338864961,1726955432183,-500.0,0.00015372,2]
[338864962,1726955432193,-500.0,0.00015372,2]
[338864963,1726955432202,-500.0,0.00015373,2]
[338864964,1726955432211,-500.0,0.00015373,2]
[338864965,1726955432220,-499.38,0.00015373,2]
[338864966,1726955432230,-500.0,0.00015373,2]
[338864967,1726955432239,-500.0,0.00015373,2]
[338864968,1726955432249,-544.34,0.00015373,2]
[338864969,1726955432261,-500.0,0.00015373,2]
[338864970,1726955432271,-500.0,0.00015373,2]
[338864971,1726955432281,-567.63,0.00015373,2]
[338864972,1726955432290,-500.0,0.00015373,2]
[338864973,1726955432299,-500.0,0.00015373,2]
[338864974,1726955432309,-500.0,0.00015373,2]
[338864975,1726955432318,-500.0,0.00015373,2]
[338864976,1726955432327,-500.0,0.00015373,2]
[338864977,1726955432337,-500.0,0.00015373,2]
[338864978,1726955432346,-500.0,0.00015373,2]
[338864979,1726955432356,-500.0,0.00015373,2]
[338864980,1726955432365,-500.0,0.00015375,2]
[338864981,1726955432375,-500.0,0.00015375,2]
[338864982,1726955432384,-500.0,0.00015375,2]
[338864983,1726955432394,-500.0,0.00015375,2]
[338864984,1726955432403,-567.28729809,0.00015375,2]
[338864985,1726955432415,-500.0,0.00015375,2]
[338864986,1726955432424,-355.07105318,0.00015375,2]
[338864987,1726955432434,-500.0,0.00015375,2]
[338864988,1726955432445,-500.0,0.00015375,2]
[338864989,1726955432455,-500.0,0.00015375,2]
[338864990,1726955432465,-816.43,0.000154,2]
[338864991,1726955432474,-500.0,0.00015645,2]
[338864992,1726955432484,-500.0,0.00015645,2]
[338864993,1726955432494,-500.0,0.00015645,2]
[338864994,1726955432503,-500.0,0.00015645,2]
[338864995,1726955432512,-10026.25,0.00015645,2]
[338864996,1726955432522,-904.37,0.00015645,2]
[338864997,1726955432531,-500.0,0.00015646,2]
[338864998,1726955432540,-315.61596561,0.00015646,2]
[338864999,1726955432550,-500.0,0.00015646,2]
[338865000,1726955432559,-500.0,0.00015646,2]
[338865001,1726955432568,-500.0,0.00015646,2]
[338865002,1726955432578,-529.28359655,0.00015646,2]
[338865003,1726955432588,-500.0,0.00015646,2]
[338865004,1726955432598,-500.0,0.00015646,2]
[338865005,1726955432607,-500.0,0.00015646,2]
[338865006,1726955432618,-570.13,0.00015646,2]
[338865007,1726955432629,-679.08118469,0.00015646,2]
[338865008,1726955432645,-1390.84235969,0.00015646,2]
[338865031,1726955440069,-1500.72645562,0.00015646,2]
[338865033,1726955440079,-500.0,0.00015646,2]
[338865036,1726955440088,-500.0,0.00015647,2]
[338865037,1726955440097,-500.0,0.00015647,2]
[338865039,1726955440106,-500.0,0.00015647,2]
[338865040,1726955440117,-500.0,0.00015647,2]
[338865041,1726955440128,-544.34,0.00015647,2]
[338865042,1726955440139,-567.63,0.00015647,2]
[338865043,1726955440149,-500.0,0.00015647,2]
[338865044,1726955440158,-419.80354438,0.00015647,2]
[338865045,1726955440171,-80.19645562,0.00015647,2]
[338865046,1726955440181,-500.0,0.00015647,2]
[338865047,1726955440192,-500.0,0.00015647,2]
[338865048,1726955440203,-500.0,0.00015647,2]
[338865049,1726955440213,-500.0,0.00015647,2]
[338865050,1726955440224,-500.0,0.00015647,2]
[338865051,1726955440236,-500.0,0.00015649,2]
[338865052,1726955440248,-500.0,0.00015649,2]
[338865053,1726955440261,-500.0,0.00015649,2]
[338865054,1726955440270,-500.0,0.00015649,2]
[338865055,1726955440280,-500.0,0.00015649,2]
[338865056,1726955440290,-500.0,0.00015649,2]
[338865057,1726955440300,-500.0,0.00015649,2]
[338865058,1726955440310,-153.0,0.000157,2]
[338865059,1726955440319,-306.0,0.00015881,2]
[338865060,1726955440328,-500.0,0.00015919,2]
[338865061,1726955440339,-500.0,0.00015919,2]
[338865062,1726955440348,-500.0,0.00015919,2]
[338865063,1726955440358,-10026.25,0.00015919,2]
[338865064,1726955440368,-904.37,0.00015919,2]
[338865065,1726955440378,-500.0,0.0001592,2]
[338865066,1726955440387,-500.0,0.0001592,2]
[338865067,1726955440397,-500.0,0.0001592,2]
[338865068,1726955440407,-500.0,0.0001592,2]
[338865069,1726955440417,-500.0,0.0001592,2]
[338865070,1726955440428,-570.13,0.0001592,2]
[338865071,1726955440439,-3570.65,0.0001592,2]
[338865072,1726955440450,-500.0,0.00015921,2]
[338865073,1726955440460,-500.0,0.00015921,2]
[338865074,1726955440472,-544.34,0.00015921,2]
[338865075,1726955440481,-567.63,0.00015921,2]
[338865076,1726955440491,-500.0,0.00015921,2]
[338865077,1726955440500,-500.0,0.00015921,2]
[338865078,1726955440510,-500.0,0.00015921,2]
[338865079,1726955440519,-615.11566025,0.00015921,2]
[338865080,1726955440528,-500.0,0.00015921,2]
[338865081,1726955440538,-426.46244305,0.00015921,2]
[338865082,1726955440546,-500.0,0.00015921,2]
[338865083,1726955440556,-500.0,0.00015923,2]
[338865084,1726955440566,-500.0,0.00015923,2]
[338865085,1726955440575,-500.0,0.00015923,2]
[338865086,1726955440585,-500.0,0.00015923,2]
[338865087,1726955440595,-500.0,0.00015923,2]
[338865088,1726955440604,-500.0,0.00015923,2]
[338865089,1726955440613,-339.55691879,0.00015923,2]
[338865090,1726955440623,-300.0,0.000161,6]
[338865091,1726955440633,-36077.125745,0.00016158,2]
[338865092,1726955440642,-34296.6823966,0.00016158,2]
[338865093,1726955440651,-151.0,0.00016168,2]
[338865094,1726955440661,-151.0,0.00016168,2]
[338865095,1726955440670,-500.0,0.00016193,2]
[338865096,1726955440680,-500.0,0.00016193,2]
[338865097,1726955440690,-500.0,0.00016193,2]
[338865098,1726955440699,-10026.25,0.00016193,2]
[338865099,1726955440709,-904.37,0.00016193,2]
[338865100,1726955440719,-500.0,0.00016194,2]
[338865101,1726955440729,-500.0,0.00016194,2]
[338865102,1726955440739,-500.0,0.00016194,2]
[338865103,1726955440749,-602.48346368,0.00016194,2]
[338865104,1726955440759,-500.0,0.00016194,2]
[338865105,1726955440769,-570.13,0.00016194,2]
[338865106,1726955440778,-3570.65,0.00016194,2]
[338865107,1726955440788,-500.0,0.00016195,2]
[338865108,1726955440798,-500.0,0.00016195,2]
[338865109,1726955440808,-544.34,0.00016195,2]
[338865110,1726955440817,-567.63,0.00016195,2]
[338865111,1726955440827,-500.0,0.00016195,2]
[338865112,1726955440837,-500.0,0.00016195,2]
[338865113,1726955440847,-500.0,0.00016195,2]
[338865114,1726955440857,-500.0,0.00016195,2]
[338865115,1726955440867,-500.0,0.00016195,2]
[338865116,1726955440877,-500.0,0.00016197,2]
[338865117,1726955440887,-500.0,0.00016197,2]
[338865118,1726955440897,-500.0,0.00016197,2]
[338865119,1726955440907,-500.0,0.00016197,2]
[338865120,1726955440917,-517.05312357,0.00016197,2]
[338865121,1726955440927,-500.0,0.00016197,2]
[338865122,1726955440937,-150.0,0.00016203,2]
[338865123,1726955440947,-153.0,0.00016264,2]
[338865124,1726955440956,-823.0365064,0.00016264,2]
[338865125,1726955440965,-1483.65753051,0.000164,2]
[338865126,1726955440975,-715.74577479,0.00016415,2]
[338865127,1726955440985,-6844.4157779,0.00016416,2]
[338865128,1726955440994,-200.0,0.00016438,2]
[338865129,1726955441004,-200.0,0.00016438,2]
[338865130,1726955441013,-200.0,0.00016438,2]
[338865131,1726955441023,-200.0,0.00016438,2]
[338865132,1726955441032,-681.6,0.00016438,2]
[338865133,1726955441042,-36077.125745,0.00016442,2]
[338865134,1726955441052,-34296.6823966,0.00016442,2]
[338865135,1726955441061,-151.0,0.00016453,2]
[338865136,1726955441070,-998.90120867,0.00016462,2]
[338865137,1726955441080,-309.47766963,0.00016462,2]
[338865138,1726955441089,-151.0,0.00016462,2]
[338865139,1726955441098,-36077.125745,0.00016465,2]
[338865140,1726955441107,-34296.6823966,0.00016465,2]
[338865141,1726955441117,-171.12430296,0.00016467,2]
[338865142,1726955441126,-500.0,0.00016467,2]
[338865143,1726955441136,-500.0,0.00016467,2]
[338865144,1726955441145,-10026.25,0.00016467,2]
[338865145,1726955441154,-904.37,0.00016467,2]
[338865146,1726955441164,-500.0,0.00016468,2]
[338865147,1726955441173,-500.0,0.00016468,2]
[338865148,1726955441183,-200.0,0.00016468,2]
[338865149,1726955441192,-500.0,0.00016468,2]
[338865150,1726955441202,-500.0,0.00016468,2]
[338865151,1726955441211,-570.13,0.00016468,2]
[338865152,1726955441221,-3570.65,0.00016468,2]
[338865153,1726955441231,-500.0,0.00016469,2]
[338865154,1726955441240,-500.0,0.00016469,2]
[338865155,1726955441250,-544.34,0.00016469,2]
[338865156,1726955441262,-567.63,0.00016469,2]
[338865157,1726955441272,-500.0,0.00016469,2]
[338865158,1726955441281,-500.0,0.00016469,2]
[338865159,1726955441291,-500.0,0.00016469,2]
[338865160,1726955441301,-500.0,0.00016469,2]
[338865161,1726955441311,-639.944675,0.00016469,2]
[338865162,1726955441321,-151.0,0.00016469,2]
[338865163,1726955441330,-639.944675,0.00016469,2]
[338865164,1726955441340,-153.278653,0.00016469,2]
[338865165,1726955441351,-315.225152,0.00016469,2]
[338865166,1726955441361,-315.225152,0.00016469,2]
[338865167,1726955441370,-500.0,0.00016471,2]
[338865168,1726955441380,-500.0,0.00016471,2]
[338865169,1726955441390,-500.0,0.00016471,2]
[338865170,1726955441400,-500.0,0.00016471,2]
[338865171,1726955441409,-500.0,0.00016471,2]
[338865172,1726955441418,-151.0,0.00016472,2]
[338865173,1726955441428,-500.0,0.00016473,2]
[338865174,1726955441438,-500.0,0.00016473,2]
[338865175,1726955441447,-500.0,0.00016473,2]
[338865176,1726955441457,-500.0,0.00016473,2]
[338865177,1726955441467,-500.0,0.00016473,2]
[338865178,1726955441477,-500.0,0.00016473,2]
[338865179,1726955441486,-500.0,0.00016473,2]
[338865180,1726955441496,-500.0,0.00016473,2]
[338865181,1726955441506,-500.0,0.00016473,2]
[338865182,1726955441516,-303.89639885,0.00016473,2]
[338865183,1726955441526,-500.0,0.00016473,2]
[338865184,1726955441535,-517.426835,0.00016475,2]
[338865185,1726955441545,-517.426835,0.00016475,2]
[338865186,1726955441555,-295.550393,0.00016475,2]
[338865187,1726955441564,-295.550393,0.00016475,2]
[338865188,1726955441575,-758.112631,0.00016475,2]
[338865189,1726955441585,-758.112631,0.00016475,2]
[338865190,1726955441597,-151.0,0.00016475,2]
[338865191,1726955441607,-736.246254,0.00016475,2]
[338865192,1726955441616,-736.246254,0.00016475,2]
[338865193,1726955441627,-151.0,0.00016475,2]
[338865194,1726955441637,-407.085646,0.00016475,2]
[338865195,1726955441646,-407.085646,0.00016475,2]
[338865196,1726955441655,-151.0,0.00016475,2]
[338865197,1726955441665,-169.816527,0.00016475,2]
[338865198,1726955441675,-1277.740459,0.00016475,2]
[338865199,1726955441684,-1277.740459,0.00016475,2]
[338865200,1726955441694,-151.0,0.00016475,2]
[338865201,1726955441704,-151.0,0.00016475,2]
[338865202,1726955441714,-151.0,0.00016475,2]
[338865203,1726955441723,-151.0,0.00016475,2]
[338865204,1726955441733,-5654.261616,0.00016475,2]
[338865205,1726955441743,-5654.261616,0.00016475,2]
[338865206,1726955441752,-151.0,0.00016485,2]
[338865207,1726955441762,-151.0,0.00016485,2]
[338865208,1726955441772,-439.787767,0.00016485,2]
[338865209,1726955441781,-439.787767,0.00016485,2]
[338865210,1726955441792,-151.0,0.00016485,2]
[338865211,1726955441801,-151.0,0.00016485,2]
[338865212,1726955441811,-151.0,0.00016485,2]
[338865213,1726955441821,-151.0,0.00016485,2]
[338865214,1726955441831,-151.0,0.00016485,2]
[338865215,1726955441840,-151.0,0.00016485,2]
[338865216,1726955441850,-286.621205,0.00016485,2]
[338865217,1726955441860,-286.621205,0.00016485,2]
[338865218,1726955441871,-824.076443,0.00016485,2]
[338865219,1726955441883,-517.426835,0.00016485,2]
[338865220,1726955441897,-824.076443,0.00016485,2]
[338865221,1726955441908,-517.426835,0.00016485,2]
[338865222,1726955441918,-151.0,0.00016485,2]
[338865223,1726955441928,-632.606093,0.00016485,2]
[338865224,1726955441939,-151.0,0.00016485,2]
[338865225,1726955441950,-632.606093,0.00016485,2]
[338865226,1726955441959,-295.550393,0.00016485,2]
[338865227,1726955441969,-295.550393,0.00016485,2]
[338865228,1726955441979,-758.112631,0.00016485,2]
[338865229,1726955441989,-758.112631,0.00016485,2]
[338865230,1726955441999,-151.0,0.00016485,2]
[338865231,1726955442009,-736.246254,0.00016485,2]
[338865232,1726955442019,-736.246254,0.00016485,2]
[338865233,1726955442029,-167.240858,0.00016485,2]
[338865234,1726955442039,-167.240858,0.00016485,2]
[338865235,1726955442049,-151.0,0.00016485,2]
[338865236,1726955442058,-407.085646,0.00016485,2]
[338865237,1726955442068,-407.085646,0.00016485,2]
[338865238,1726955442244,-151.0,0.00016485,2]
[338865239,1726955442255,-1277.740459,0.00016485,2]
[338865240,1726955442265,-1277.740459,0.00016485,2]
[338865241,1726955442275,-151.0,0.00016485,2]
[338865242,1726955442284,-151.0,0.00016485,2]
[338865243,1726955442294,-151.0,0.00016485,2]
[338865244,1726955442304,-151.0,0.00016485,2]
[338865245,1726955442313,-5654.261616,0.00016485,2]
[338865246,1726955442323,-5654.261616,0.00016485,2]
[338865247,1726955442332,-36077.125745,0.00016495,2]
[338865248,1726955442342,-34296.6823966,0.00016495,2]
[338865249,1726955442352,-639.944675,0.00016495,2]
[338865250,1726955442361,-151.0,0.00016495,2]
[338865251,1726955442370,-639.944675,0.00016495,2]
[338865252,1726955442380,-315.225152,0.00016495,2]
[338865253,1726955442389,-315.225152,0.00016495,2]
[338865254,1726955442399,-151.0,0.00016504,2]
[338865255,1726955442408,-151.0,0.00016504,2]
[338865256,1726955442418,-151.0,0.00016505,2]
[338865257,1726955442427,-151.0,0.00016505,2]
[338865258,1726955442437,-674.26425,0.00016505,2]
[338865259,1726955442446,-151.0,0.00016505,2]
[338865260,1726955442456,-674.26425,0.00016505,2]
[338865261,1726955442465,-151.0,0.00016505,2]
[338865262,1726955442475,-151.0,0.00016505,2]
[338865263,1726955442484,-151.0,0.00016505,2]
[338865264,1726955442493,-151.0,0.00016505,2]
[338865265,1726955442503,-151.0,0.00016505,2]
[338865266,1726955442512,-151.0,0.00016505,2]
[338865267,1726955442522,-151.0,0.00016505,2]
[338865268,1726955442531,-239.065775,0.00016505,2]
[338865269,1726955442540,-151.0,0.00016505,2]
[338865270,1726955442551,-1454.083673,0.00016505,2]
[338865271,1726955442561,-1454.083673,0.00016505,2]
[338865272,1726955442570,-151.0,0.00016505,2]
[338865273,1726955442580,-151.0,0.00016505,2]
[338865274,1726955442590,-1203.833073,0.00016505,2]
[338865275,1726955442602,-1203.833073,0.00016505,2]
[338865276,1726955442611,-199.499447,0.00016505,2]
[338865277,1726955442621,-199.499447,0.00016505,2]
[338865278,1726955442629,-271.163604,0.00016505,2]
[338865280,1726955442640,-271.163604,0.00016505,2]
[338865281,1726955442650,-370.874248,0.00016505,2]
[338865282,1726955442660,-370.874248,0.00016505,2]
[338865283,1726955442669,-231.022922,0.00016505,2]
[338865284,1726955442678,-231.022922,0.00016505,2]
[338865285,1726955442688,-639.944675,0.00016505,2]
[338865286,1726955442697,-151.0,0.00016505,2]
[338865287,1726955442708,-639.944675,0.00016505,2]
[338865288,1726955442718,-315.225152,0.00016505,2]
[338865289,1726955442729,-315.225152,0.00016505,2]
[338865290,1726955442740,-72154.2514899,0.00016505,2]
[338865291,1726955442749,-68593.3647932,0.00016505,2]
[338865292,1726955442759,-1873.720172,0.00016514,2]
[338865294,1726955442768,-1873.720172,0.00016514,2]
[338865295,1726955442778,-151.0,0.00016515,2]
[338865296,1726955442787,-151.0,0.00016515,2]
[338865297,1726955442796,-151.0,0.00016515,2]
[338865298,1726955442806,-1873.720172,0.00016515,2]
[338865299,1726955442815,-1873.720172,0.00016515,2]
[338865300,1726955442825,-1873.720172,0.00016515,2]
[338865301,1726955442835,-1873.720172,0.00016515,2]
[338865302,1726955442845,-1873.720172,0.00016515,2]
[338865303,1726955442854,-1873.720172,0.00016515,2]
[338865304,1726955442863,-151.0,0.00016515,2]
[338865305,1726955442873,-151.0,0.00016515,2]
[338865306,1726955442883,-151.0,0.00016515,2]
[338865307,1726955442893,-674.26425,0.00016515,2]
[338865308,1726955442903,-151.0,0.00016515,2]
[338865309,1726955442913,-674.26425,0.00016515,2]
[338865310,1726955442922,-151.0,0.00016515,2]
[338865312,1726955442932,-151.0,0.00016515,2]
[338865314,1726955442941,-151.0,0.00016515,2]
[338865315,1726955442950,-151.0,0.00016515,2]
[338865316,1726955442959,-151.0,0.00016515,2]
[338865317,1726955442969,-151.0,0.00016515,2]
[338865318,1726955442978,-151.0,0.00016515,2]
[338865319,1726955442988,-239.065775,0.00016515,2]
[338865320,1726955442997,-151.0,0.00016515,2]
[338865321,1726955443006,-1454.083673,0.00016515,2]
[338865322,1726955443015,-1454.083673,0.00016515,2]
[338865323,1726955443024,-151.0,0.00016515,2]
[338865324,1726955443034,-151.0,0.00016515,2]
[338865325,1726955443043,-151.0,0.00016515,2]
[338865326,1726955443053,-1516.180759,0.00016515,2]
[338865327,1726955443063,-1203.833073,0.00016515,2]
[338865328,1726955443072,-1516.180759,0.00016515,2]
[338865329,1726955443081,-1203.833073,0.00016515,2]
[338865330,1726955443091,-199.499447,0.00016515,2]
[338865331,1726955443101,-199.499447,0.00016515,2]
[338865332,1726955443111,-271.163604,0.00016515,2]
[338865333,1726955443120,-151.0,0.00016515,2]
[338865334,1726955443129,-271.163604,0.00016515,2]
[338865335,1726955443139,-151.0,0.00016515,2]
[338865336,1726955443148,-151.0,0.00016515,2]
[338865337,1726955443158,-151.0,0.00016515,2]
[338865338,1726955443168,-5000.0,0.00016515,2]
[338865339,1726955443178,-1674.517847,0.00016515,2]
[338865340,1726955443187,-439.787767,0.00016515,2]
[338865341,1726955443198,-439.787767,0.00016515,2]
[338865342,1726955443208,-151.0,0.00016515,2]
[338865343,1726955443219,-151.0,0.00016515,2]
[338865344,1726955443230,-151.0,0.00016515,2]
[338865345,1726955443240,-151.0,0.00016515,2]
[338865346,1726955443250,-151.0,0.00016515,2]
[338865347,1726955443264,-370.874248,0.00016515,2]
[338865348,1726955443273,-370.874248,0.00016515,2]
[338865349,1726955443283,-286.621205,0.00016515,2]
[338865350,1726955443292,-286.621205,0.00016515,2]
[338865351,1726955443304,-824.076443,0.00016515,2]
[338865352,1726955443313,-517.426835,0.00016515,2]
[338865353,1726955443323,-824.076443,0.00016515,2]
[338865354,1726955443336,-517.426835,0.00016515,2]
[338865355,1726955443346,-151.0,0.00016515,2]
[338865356,1726955443357,-632.606093,0.00016515,2]
[338865357,1726955443365,-151.0,0.00016515,2]
[338865358,1726955443376,-632.606093,0.00016515,2]
[338865359,1726955443386,-231.022922,0.00016515,2]
[338865360,1726955443397,-231.022922,0.00016515,2]
[338865361,1726955443407,-295.550393,0.00016515,2]
[338865362,1726955443419,-295.550393,0.00016515,2]
[338865363,1726955443428,-758.112631,0.00016515,2]
[338865364,1726955443439,-758.112631,0.00016515,2]
[338865365,1726955443449,-151.0,0.00016515,2]
[338865366,1726955443458,-736.246254,0.00016515,2]
[338865367,1726955443467,-736.246254,0.00016515,2]
[338865368,1726955443477,-167.240858,0.00016515,2]
[338865369,1726955443486,-167.240858,0.00016515,2]
[338865370,1726955443496,-151.0,0.00016515,2]
[338865371,1726955443506,-407.085646,0.00016515,2]
[338865372,1726955443516,-407.085646,0.00016515,2]
[338865373,1726955443526,-151.0,0.00016515,2]
[338865374,1726955443537,-1277.740459,0.00016515,2]
[338865375,1726955443546,-1277.740459,0.00016515,2]
[338865376,1726955443558,-151.0,0.00016515,2]
[338865377,1726955443569,-151.0,0.00016515,2]
[338865378,1726955443581,-278.749148,0.00016515,2]
[338865379,1726955443591,-639.944675,0.00016515,2]
[338865380,1726955443602,-151.0,0.00016515,2]
[338865381,1726955443612,-151.0,0.00016515,2]
[338865382,1726955443622,-639.944675,0.00016515,2]
[338865383,1726955443633,-315.225152,0.00016515,2]
[338865384,1726955443645,-5654.261616,0.00016515,2]
[338865385,1726955443656,-315.225152,0.00016515,2]
[338865386,1726955443666,-438.02615716,0.00016515,2]
[338865387,1726955443754,-500.0,0.00016474,2]
[338865388,1726955443763,-63.04860029,0.00016474,2]
[338865402,1726956385165,469.48,0.0002202,120]
[338865404,1726956417631,469.48,0.0002202,120]
[338865443,1726956632135,-300.0,0.00014398,2]
[338865445,1726956632144,-300.0,0.00014398,2]
[338865447,1726956632155,-11006.1275052,0.00014399,2]
[338865492,1726956640092,-0.2668868,0.00014399,2]
[338865493,1726956640102,-500.0,0.00015369,2]
[338865494,1726956640112,-500.0,0.00015369,2]
[338865495,1726956640121,-500.0,0.00015369,2]
[338865496,1726956640130,-2826.77,0.00015369,2]
[338865497,1726956640140,-500.0,0.0001537,2]
[338865498,1726956640150,-500.0,0.0001537,2]
[338865499,1726956640160,-500.0,0.0001537,2]
[338865500,1726956640169,-500.0,0.0001537,2]
[338865501,1726956640179,-500.0,0.0001537,2]
[338865502,1726956640188,-500.0,0.0001537,2]
[338865503,1726956640197,-500.0,0.0001537,2]
[338865504,1726956640206,-500.0,0.0001537,2]
[338865505,1726956640218,-547.01474531,0.0001537,2]
[338865506,1726956640228,-7937.44,0.0001537,2]
[338865507,1726956640238,-715.96,0.0001537,2]
[338865508,1726956640248,-519.6524215,0.00015371,2]
[338865509,1726956640259,-500.0,0.00015371,2]
[338865510,1726956640268,-413.0786524,0.00015371,2]
[338865511,1726956640277,-500.0,0.00015371,2]
[338865512,1726956640290,-500.0,0.00015371,2]
[338865513,1726956640301,-500.0,0.00015371,2]
[338865514,1726956640312,-315.9772855,0.00015371,2]
[338865515,1726956640323,-500.0,0.00015371,2]
[338865516,1726956640333,-500.0,0.00015371,2]
[338865517,1726956640346,-500.0,0.00015371,2]